fUSD/lending_fUSD_20240223
["ID","MTS","AMOUNT","RATE_DAILY","PERIOD"]
[314939713,1708690246145,-500.0,0.00027534,2]
[314939714,1708690246154,-500.0,0.00027534,2]
[314939715,1708690246163,-646.81473064,0.00027534,2]
[314939716,1708690246172,-500.0,0.00027534,2]
[314939717,1708690246182,-500.0,0.00027534,2]
[314939718,1708690246190,-622.36,0.00027534,2]
[314939719,1708690246199,-500.0,0.00027534,2]
[314939720,1708690246209,-500.0,0.00027534,2]
[314939721,1708690246218,-500.0,0.00027534,2]
[314939722,1708690246227,-500.0,0.00027534,2]
[314939723,1708690246236,-500.0,0.00027534,2]
[314939724,1708690246245,-500.0,0.00027534,2]
[314939725,1708690246254,-500.0,0.00027534,2]
[314939726,1708690246263,-500.0,0.00027534,2]
[314939727,1708690246272,-500.0,0.00027534,2]
[314939728,1708690246281,-500.0,0.00027534,2]
[314939729,1708690246290,-500.0,0.00027534,2]
[314939730,1708690246299,-500.0,0.00027534,2]
[314939731,1708690246311,-500.0,0.00027534,2]
[314939732,1708690246321,-500.0,0.00027534,2]
[314939733,1708690246330,-500.0,0.00027534,2]
[314939734,1708690246340,-510.92395397,0.00027534,2]
[314939735,1708690246349,-500.0,0.00027534,2]
[314939736,1708690246359,-500.0,0.00027534,2]
[314939737,1708690246368,-500.0,0.00027534,2]
[314939738,1708690246377,-500.0,0.00027534,2]
[314939739,1708690246386,-500.0,0.00027534,2]
[314939740,1708690246394,-500.0,0.00027534,2]
[314939741,1708690246404,-500.0,0.00027534,2]
[314939742,1708690246413,-500.0,0.00027534,2]
[314939743,1708690246422,-500.0,0.00027534,2]
[314939744,1708690246431,-500.0,0.00027534,2]
[314939745,1708690246440,-500.0,0.00027534,2]
[314939746,1708690246449,-500.0,0.00027534,2]
[314939747,1708690246458,-500.0,0.00027534,2]
[314939748,1708690246467,-500.0,0.00027534,2]
[314939749,1708690246477,-500.0,0.00027534,2]
[314939750,1708690246486,-500.0,0.00027534,2]
[314939751,1708690246495,-500.0,0.00027534,2]
[314939752,1708690246504,-500.0,0.00027534,2]
[314939753,1708690246514,-500.0,0.00027534,2]
[314939754,1708690246523,-500.0,0.00027534,2]
[314939755,1708690246532,-500.0,0.00027534,2]
[314939756,1708690246541,-500.0,0.00027534,2]
[314939757,1708690246550,-500.0,0.00027534,2]
[314939758,1708690246561,-500.0,0.00027534,2]
[314939759,1708690246570,-500.0,0.00027534,2]
[314939760,1708690246579,-500.0,0.00027534,2]
[314939761,1708690246588,-632.22,0.00027534,2]
[314939762,1708690246596,-500.0,0.00027534,2]
[314939763,1708690246605,-500.0,0.00027534,2]
[314939764,1708690246614,-500.0,0.00027534,2]
[314939765,1708690246623,-500.0,0.00027534,2]
[314939766,1708690246632,-500.0,0.00027534,2]
[314939767,1708690246641,-500.0,0.00027534,2]
[314939768,1708690246650,-178.12577392,0.00027534,2]
[314939769,1708690246659,-500.0,0.00027534,2]
[314939770,1708690246669,-500.0,0.00027534,2]
[314939771,1708690246677,-500.0,0.00027534,2]
[314939772,1708690246686,-500.0,0.00027534,2]
[314939773,1708690246696,-500.0,0.00027534,2]
[314939774,1708690246705,-506.47496923,0.00027534,2]
[314939775,1708690246714,-500.0,0.00027534,2]
[314939776,1708690246724,-500.0,0.00027534,2]
[314939777,1708690246733,-500.0,0.00027534,2]
[314939778,1708690246742,-500.0,0.00027534,2]
[314939779,1708690246751,-500.0,0.00027534,2]
[314939780,1708690246761,-500.0,0.00027534,2]
[314939781,1708690246770,-500.0,0.00027534,2]
[314939782,1708690246779,-500.0,0.00027534,2]
[314939783,1708690246788,-500.0,0.00027534,2]
[314939784,1708690246797,-500.0,0.00027534,2]
[314939785,1708690246806,-500.0,0.00027534,2]
[314939786,1708690246816,-500.0,0.00027534,2]
[314939787,1708690246825,-500.0,0.00027534,2]
[314939788,1708690246835,-500.0,0.00027534,2]
[314939789,1708690246844,-500.0,0.00027534,2]
[314939790,1708690246853,-500.0,0.00027534,2]
[314939791,1708690246862,-500.0,0.00027534,2]
[314939792,1708690246872,-500.0,0.00027534,2]
[314939793,1708690246882,-500.0,0.00027534,2]
[314939794,1708690246890,-500.0,0.00027534,2]
[314939795,1708690246899,-500.0,0.00027534,2]
[314939796,1708690246908,-500.0,0.00027534,2]
[314939797,1708690246918,-816.51,0.00027534,2]
[314939798,1708690246927,-500.0,0.00027534,2]
[314939799,1708690246936,-500.0,0.00027534,2]
[314939800,1708690246945,-500.0,0.00027534,2]
[314939801,1708690246955,-500.0,0.00027534,2]
[314939802,1708690246966,-500.0,0.00027534,2]
[314939803,1708690246975,-500.0,0.00027534,2]
[314939804,1708690246984,-527.55984164,0.00027534,2]
[314939805,1708690246993,-500.0,0.00027534,2]
[314939806,1708690247002,-500.0,0.00027534,2]
[314939807,1708690247011,-500.0,0.00027534,2]
[314939808,1708690247021,-500.0,0.00027534,2]
[314939809,1708690247032,-500.0,0.00027534,2]
[314939810,1708690247042,-162.41257949,0.00027534,2]
[314939811,1708690247053,-500.0,0.00027534,2]
[314939812,1708690247064,-500.0,0.00027534,2]
[314939813,1708690247074,-500.0,0.00027534,2]
[314939814,1708690247083,-287.53333752,0.00027534,2]
[314939815,1708690247093,-500.0,0.00027534,2]
[314939816,1708690247102,-500.0,0.00027534,2]
[314939817,1708690247111,-540.6676844,0.00027534,2]
[314939818,1708690247120,-500.0,0.00027534,2]
[314939819,1708690247131,-500.0,0.00027534,2]
[314939820,1708690247141,-500.0,0.00027534,2]
[314939821,1708690247151,-500.0,0.00027534,2]
[314939822,1708690247162,-500.0,0.00027534,2]
[314939823,1708690247170,-500.0,0.00027534,2]
[314939824,1708690247180,-500.0,0.00027534,2]
[314939825,1708690247189,-500.0,0.00027534,2]
[314939826,1708690247198,-500.0,0.00027534,2]
[314939827,1708690247206,-500.0,0.00027534,2]
[314939828,1708690247216,-500.0,0.00027534,2]
[314939829,1708690247225,-500.0,0.00027534,2]
[314939830,1708690247233,-500.0,0.00027534,2]
[314939831,1708690247243,-500.0,0.00027534,2]
[314939832,1708690247252,-500.0,0.00027534,2]
[314939833,1708690247265,-500.0,0.00027534,2]
[314939834,1708690247274,-500.0,0.00027534,2]
[314939835,1708690247283,-500.0,0.00027534,2]
[314939836,1708690247293,-500.0,0.00027534,2]
[314939837,1708690247303,-1021.3499845,0.00027534,7]
[314939838,1708690247312,-500.0,0.00027534,2]
[314939839,1708690247322,-500.0,0.00027534,2]
[314939840,1708690247332,-500.0,0.00027534,2]
[314939841,1708690247342,-500.0,0.00027534,2]
[314939842,1708690247352,-500.0,0.00027534,2]
[314939843,1708690247361,-500.0,0.00027534,2]
[314939844,1708690247370,-500.0,0.00027534,2]
[314939845,1708690247379,-500.0,0.00027534,2]
[314939846,1708690247388,-500.0,0.00027534,2]
[314939847,1708690247398,-285.80994692,0.00027534,2]
[314939848,1708690247407,-500.0,0.00027534,2]
[314939849,1708690247416,-500.0,0.00027534,2]
[314939850,1708690247425,-500.0,0.00027534,2]
[314939851,1708690247434,-500.0,0.00027534,2]
[314939852,1708690247444,-500.0,0.00027534,2]
[314939853,1708690247453,-500.0,0.00027534,2]
[314939854,1708690247463,-385.04101612,0.00027534,2]
[314939855,1708690247472,-500.0,0.00027534,2]
[314939856,1708690247481,-500.0,0.00027534,2]
[314939857,1708690247491,-500.0,0.00027534,2]
[314939858,1708690247500,-500.0,0.00027534,2]
[314939859,1708690247510,-500.0,0.00027534,2]
[314939860,1708690247519,-500.0,0.00027534,2]
[314939861,1708690247528,-500.0,0.00027534,2]
[314939862,1708690247537,-500.0,0.00027534,2]
[314939863,1708690247546,-500.0,0.00027534,2]
[314939864,1708690247555,-500.0,0.00027534,2]
[314939865,1708690247565,-500.0,0.00027534,2]
[314939866,1708690247575,-500.0,0.00027534,2]
[314939867,1708690247584,-500.0,0.00027534,2]
[314939868,1708690247593,-500.0,0.00027534,2]
[314939869,1708690247602,-710.61,0.00027534,2]
[314939870,1708690247611,-500.0,0.00027534,2]
[314939871,1708690247621,-500.0,0.00027534,2]
[314939872,1708690247630,-500.0,0.00027534,2]
[314939873,1708690247639,-500.0,0.00027534,2]
[314939874,1708690247649,-500.0,0.00027534,2]
[314939875,1708690247658,-500.0,0.00027534,2]
[314939876,1708690247666,-500.0,0.00027534,2]
[314939877,1708690247676,-500.0,0.00027534,2]
[314939878,1708690247684,-500.0,0.00027534,2]
[314939879,1708690247694,-500.0,0.00027534,2]
[314939880,1708690247703,-500.0,0.00027534,2]
[314939881,1708690247712,-500.0,0.00027534,2]
[314939882,1708690247721,-367.37762917,0.00027534,2]
[314939883,1708690247730,-500.0,0.00027534,2]
[314939884,1708690247739,-500.0,0.00027534,2]
[314939885,1708690247749,-500.0,0.00027534,2]
[314939886,1708690247759,-500.0,0.00027534,2]
[314939887,1708690247769,-500.0,0.00027534,2]
[314939888,1708690247778,-500.0,0.00027534,2]
[314939889,1708690247787,-500.0,0.00027534,2]
[314939890,1708690247796,-500.0,0.00027534,2]
[314939891,1708690247804,-500.0,0.00027534,2]
[314939892,1708690247816,-500.0,0.00027534,2]
[314939893,1708690247826,-500.0,0.00027534,2]
[314939894,1708690247838,-500.0,0.00027534,2]
[314939895,1708690247847,-500.0,0.00027534,2]
[314939896,1708690247857,-500.0,0.00027534,2]
[314939897,1708690247866,-500.0,0.00027534,2]
[314939898,1708690247875,-500.0,0.00027534,2]
[314939899,1708690247884,-500.0,0.00027534,2]
[314939900,1708690247893,-500.0,0.00027534,2]
[314939901,1708690247902,-500.0,0.00027534,2]
[314939902,1708690247912,-500.0,0.00027534,2]
[314939903,1708690247921,-893.82,0.00027534,2]
[314939904,1708690247932,-500.0,0.00027534,2]
[314939905,1708690247941,-9495.13,0.00027534,2]
[314939906,1708690247951,-500.0,0.00027534,2]
[314939907,1708690247962,-500.0,0.00027534,2]
[314939908,1708690247971,-500.0,0.00027534,2]
[314939909,1708690247980,-500.0,0.00027534,2]
[314939910,1708690247990,-500.0,0.00027534,2]
[314939911,1708690247999,-697.4,0.00027534,2]
[314939912,1708690248008,-500.0,0.00027534,2]
[314939913,1708690248018,-500.0,0.00027534,2]
[314939914,1708690248027,-969.47,0.00027534,2]
[314939915,1708690248036,-500.0,0.00027534,2]
[314939916,1708690248046,-521.88820343,0.00027534,2]
[314939917,1708690248056,-500.0,0.00027534,2]
[314939918,1708690248071,-650.91,0.00027534,2]
[314939919,1708690248081,-529.12,0.00027534,2]
[314939920,1708690248090,-500.0,0.00027534,2]
[314939921,1708690248100,-754.91,0.00027534,2]
[314939922,1708690248109,-500.0,0.00027534,2]
[314939923,1708690248118,-500.0,0.00027534,2]
[314939924,1708690248126,-500.0,0.00027534,2]
[314939925,1708690248135,-2598.16,0.00027534,2]
[314939926,1708690248143,-500.0,0.00027534,2]
[314939927,1708690248153,-561.71,0.00027534,2]
[314939928,1708690248162,-1150.02,0.00027534,2]
[314939929,1708690248170,-500.0,0.00027534,2]
[314939930,1708690248178,-796.34,0.00027534,2]
[314939931,1708690248186,-500.0,0.00027534,2]
[314939932,1708690248194,-500.0,0.00027534,2]
[314939933,1708690248203,-500.0,0.00027534,2]
[314939934,1708690248213,-513.96,0.00027534,2]
[314939935,1708690248224,-582.73,0.00027534,2]
[314939936,1708690248235,-1302.34,0.00027534,2]
[314939937,1708690248246,-500.0,0.00027534,2]
[314939938,1708690248255,-500.0,0.00027534,2]
[314939939,1708690248267,-781.56,0.00027534,2]
[314939940,1708690248276,-500.0,0.00027534,2]
[314939941,1708690248286,-500.0,0.00027534,2]
[314939942,1708690248296,-1964.22,0.00027534,2]
[314939943,1708690248305,-519.30409513,0.00027534,2]
[314939944,1708690248317,-991.92,0.00027534,2]
[314939945,1708690248326,-500.0,0.00027534,2]
[314939946,1708690248336,-644.3,0.00027534,2]
[314939947,1708690248346,-500.0,0.00027534,2]
[314939948,1708690248360,-500.0,0.00027534,2]
[314939949,1708690248370,-500.0,0.00027534,2]
[314939950,1708690248379,-1360.2,0.00027534,2]
[314939951,1708690248389,-500.0,0.00027534,2]
[314939952,1708690248398,-500.0,0.00027534,2]
[314939953,1708690248407,-500.0,0.00027534,2]
[314939954,1708690248417,-2185.71,0.00027534,2]
[314939955,1708690248427,-2300.83,0.00027534,2]
[314939956,1708690248436,-500.0,0.00027534,2]
[314939957,1708690248445,-793.54,0.00027534,2]
[314939958,1708690248455,-500.0,0.00027534,2]
[314939959,1708690248465,-2274.06,0.00027534,2]
[314939960,1708690248475,-8929.92,0.00027534,2]
[314939961,1708690248484,-500.0,0.00027534,2]
[314939962,1708690248493,-952.26,0.00027534,2]
[314939963,1708690248503,-502.77256197,0.00027534,2]
[314939964,1708690248512,-500.0,0.00027534,2]
[314939965,1708690248522,-500.0,0.00027534,2]
[314939966,1708690248531,-1898.21,0.00027534,2]
[314939967,1708690248540,-500.0,0.00027534,2]
[314939968,1708690248550,-2928.48,0.00027534,2]
[314939969,1708690248559,-980.93,0.00027534,2]
[314939970,1708690248571,-564.15,0.00027534,2]
[314939971,1708690248580,-500.0,0.00027534,2]
[314939972,1708690248589,-583.24,0.00027534,2]
[314939973,1708690248598,-500.0,0.00027534,2]
[314939974,1708690248607,-1160.32,0.00027534,2]
[314939975,1708690248616,-500.0,0.00027534,2]
[314939976,1708690248625,-742.26,0.00027534,2]
[314939977,1708690248634,-500.0,0.00027534,2]
[314939978,1708690248643,-1297.04,0.00027534,2]
[314939979,1708690248652,-539.46,0.00027534,2]
[314939980,1708690248661,-500.0,0.00027534,2]
[314939981,1708690248670,-500.0,0.00027534,2]
[314939982,1708690248679,-500.0,0.00027534,2]
[314939983,1708690248688,-500.0,0.00027534,2]
[314939984,1708690248697,-500.0,0.00027534,2]
[314939985,1708690248707,-500.0,0.00027534,2]
[314939986,1708690248716,-793.96,0.00027534,2]
[314939987,1708690248725,-500.0,0.00027534,2]
[314939988,1708690248734,-638.24,0.00027534,2]
[314939989,1708690248743,-500.0,0.00027534,2]
[314939990,1708690248752,-513.11,0.00027534,2]
[314939991,1708690248761,-500.0,0.00027534,2]
[314939992,1708690248770,-500.0,0.00027534,2]
[314939993,1708690248779,-500.0,0.00027534,2]
[314939994,1708690248788,-1478.4,0.00027534,2]
[314939995,1708690248797,-2434.71,0.00027534,2]
[314939996,1708690248807,-500.0,0.00027534,2]
[314939997,1708690248817,-500.0,0.00027534,2]
[314939998,1708690248827,-500.0,0.00027534,2]
[314939999,1708690248836,-500.0,0.00027534,2]
[314940000,1708690248845,-500.0,0.00027534,2]
[314940001,1708690248854,-500.0,0.00027534,2]
[314940002,1708690248863,-500.0,0.00027534,2]
[314940003,1708690248872,-3672.38,0.00027534,2]
[314940004,1708690248882,-513.99640353,0.00027534,2]
[314940005,1708690248891,-926.71,0.00027534,2]
[314940006,1708690248900,-500.0,0.00027534,2]
[314940007,1708690248909,-500.0,0.00027534,2]
[314940008,1708690248919,-842.42,0.00027534,2]
[314940009,1708690248929,-500.0,0.00027534,2]
[314940010,1708690248938,-500.0,0.00027534,2]
[314940011,1708690248947,-500.0,0.00027534,2]
[314940012,1708690248956,-500.0,0.00027534,2]
[314940013,1708690248966,-5063.8,0.00027534,2]
[314940014,1708690248975,-500.0,0.00027534,2]
[314940015,1708690248984,-1344.95,0.00027534,2]
[314940016,1708690248993,-1831.22,0.00027534,2]
[314940017,1708690249003,-500.0,0.00027534,2]
[314940018,1708690249016,-500.0,0.00027534,2]
[314940019,1708690249025,-500.0,0.00027534,2]
[314940020,1708690249034,-500.0,0.00027534,2]
[314940021,1708690249043,-500.0,0.00027534,2]
[314940022,1708690249054,-500.0,0.00027534,2]
[314940023,1708690249066,-544.85839609,0.00027534,2]
[314940024,1708690249075,-500.0,0.00027534,2]
[314940025,1708690249083,-500.0,0.00027534,2]
[314940026,1708690249093,-500.0,0.00027534,2]
[314940027,1708690249102,-1534.42,0.00027534,2]
[314940028,1708690249111,-500.0,0.00027534,2]
[314940029,1708690249120,-596.78,0.00027534,2]
[314940030,1708690249130,-536.88,0.00027534,2]
[314940031,1708690249140,-785.51,0.00027534,2]
[314940032,1708690249150,-688.1,0.00027534,2]
[314940033,1708690249160,-500.0,0.00027534,2]
[314940034,1708690249170,-500.0,0.00027534,2]
[314940035,1708690249179,-500.0,0.00027534,2]
[314940036,1708690249188,-500.0,0.00027534,2]
[314940037,1708690249198,-699.22,0.00027534,2]
[314940038,1708690249208,-2233.66,0.00027534,2]
[314940039,1708690249217,-500.0,0.00027534,2]
[314940040,1708690249226,-1922.54,0.00027534,2]
[314940041,1708690249237,-453.15182224,0.00027534,2]
[314940042,1708690249264,-46.84817776,0.00027534,2]
[314940043,1708690249273,-703.36688401,0.00027534,2]
[314940044,1708690249286,-225.52311599,0.00027534,2]
[314940045,1708690249295,-500.0,0.00027534,2]
[314940046,1708690249305,-15.75412356,0.00027534,2]
[314940047,1708690249319,-420.8888349,0.00027534,2]
[314940048,1708690249331,-313.89851893,0.00027534,2]
[314940049,1708690249342,-855.26903459,0.00027534,2]
[314940050,1708690249378,-510.78,0.00027534,2]
[314940051,1708690249659,-409.104576,0.00027397,2]
[314940052,1708690249676,-90.895424,0.00027397,2]
[314940053,1708690249685,-500.0,0.00027397,2]
[314940054,1708690249694,-440.84481913,0.00027397,2]
[314940055,1708690249705,-59.15518087,0.00027397,2]
[314940056,1708690249714,-320.40177365,0.00027405,4]
[314940057,1708690249730,-708.33524186,0.00027405,4]
[314940058,1708690249841,-722712.88744149,0.00027405,4]
[314940059,1708690249852,-679.0,0.00027405,4]
[314940060,1708690249864,-6315.3454475,0.00027405,4]
[314940061,1708690250081,-165.27,0.00027397,10]
[314940062,1708690250090,-3596.00757182,0.00027405,4]
[314940063,1708690250541,-5290.62523363,0.00027217,2]
[314940064,1708690250552,-102930.78999424,0.00027405,4]
[314940065,1708690250565,-93.82948802,0.00027534,2]
[314940066,1708690250575,-500.0,0.00027534,2]
[314940067,1708690250586,-500.0,0.00027534,2]
[314940068,1708690250596,-500.0,0.00027534,2]
[314940069,1708690250607,-693.84,0.00027534,2]
[314940070,1708690250618,-838.6,0.00027534,2]
[314940071,1708690250628,-500.0,0.00027534,2]
[314940072,1708690250638,-662.02,0.00027534,2]
[314940073,1708690250648,-535.86,0.00027534,2]
[314940074,1708690250657,-1045.72,0.00027534,2]
[314940075,1708690250668,-500.0,0.00027534,2]
[314940076,1708690250678,-2507.73,0.00027534,2]
[314940077,1708690250688,-5010.66,0.00027534,2]
[314940078,1708690250698,-2943.77,0.00027534,2]
[314940079,1708690250708,-500.0,0.00027534,2]
[314940080,1708690250718,-500.0,0.00027534,2]
[314940081,1708690250729,-500.0,0.00027534,2]
[314940082,1708690250739,-500.0,0.00027534,2]
[314940083,1708690250749,-846.18,0.00027534,2]
[314940084,1708690250759,-1801.66,0.00027534,2]
[314940085,1708690250770,-500.0,0.00027534,2]
[314940086,1708690250779,-500.0,0.00027534,2]
[314940087,1708690250789,-500.0,0.00027534,2]
[314940088,1708690250799,-582.74,0.00027534,2]
[314940089,1708690250810,-500.0,0.00027534,2]
[314940090,1708690250822,-500.0,0.00027534,2]
[314940091,1708690250831,-1377.84,0.00027534,2]
[314940092,1708690250841,-500.0,0.00027534,2]
[314940093,1708690250851,-2076.41,0.00027534,2]
[314940094,1708690250862,-1493.16,0.00027534,2]
[314940095,1708690250873,-537.54,0.00027534,2]
[314940096,1708690250884,-5730.17,0.00027534,2]
[314940097,1708690250894,-500.0,0.00027534,2]
[314940098,1708690250904,-647.43,0.00027534,2]
[314940099,1708690250915,-500.0,0.00027534,2]
[314940100,1708690250925,-1013.04,0.00027534,2]
[314940101,1708690250936,-500.0,0.00027534,2]
[314940102,1708690250946,-500.0,0.00027534,2]
[314940103,1708690250956,-500.0,0.00027534,2]
[314940104,1708690250968,-500.0,0.00027534,2]
[314940105,1708690250978,-500.0,0.00027534,2]
[314940106,1708690250988,-637.02,0.00027534,2]
[314940107,1708690250998,-601.7,0.00027534,2]
[314940108,1708690251008,-9159.98,0.00027534,2]
[314940109,1708690251017,-1359.88,0.00027534,2]
[314940110,1708690251027,-500.0,0.00027534,2]
[314940111,1708690251037,-933.22,0.00027534,2]
[314940112,1708690251047,-500.0,0.00027534,2]
[314940113,1708690251058,-1108.92,0.00027534,2]
[314940114,1708690251073,-500.0,0.00027534,2]
[314940115,1708690251082,-500.0,0.00027534,2]
[314940116,1708690251092,-1606.13,0.00027534,2]
[314940117,1708690251103,-569.78,0.00027534,2]
[314940118,1708690251113,-722.95,0.00027534,2]
[314940119,1708690251123,-500.0,0.00027534,2]
[314940120,1708690251132,-500.0,0.00027534,2]
[314940121,1708690251143,-500.0,0.00027534,2]
[314940122,1708690251153,-500.0,0.00027534,2]
[314940123,1708690251163,-500.0,0.00027534,2]
[314940124,1708690251173,-500.0,0.00027534,2]
[314940125,1708690251183,-500.0,0.00027534,2]
[314940126,1708690251193,-2500.83,0.00027534,2]
[314940127,1708690251203,-800.75,0.00027534,2]
[314940128,1708690251212,-522.23,0.00027534,2]
[314940129,1708690251222,-510.78,0.00027534,2]
[314940130,1708690251231,-500.0,0.00027534,2]
[314940131,1708690251242,-500.0,0.00027534,2]
[314940132,1708690251251,-500.0,0.00027534,2]
[314940133,1708690251261,-500.0,0.00027534,2]
[314940134,1708690251271,-500.0,0.00027534,2]
[314940135,1708690251281,-1379.25,0.00027534,2]
[314940136,1708690251291,-500.0,0.00027534,2]
[314940137,1708690251301,-500.0,0.00027534,2]
[314940138,1708690251310,-500.0,0.00027534,2]
[314940139,1708690251322,-500.0,0.00027534,2]
[314940140,1708690251332,-500.0,0.00027534,2]
[314940141,1708690251341,-500.0,0.00027534,2]
[314940142,1708690251351,-500.0,0.00027534,2]
[314940143,1708690251361,-500.0,0.00027534,2]
[314940144,1708690251372,-578.37782539,0.00027534,2]
[314940145,1708690251382,-500.0,0.00027534,2]
[314940146,1708690251392,-3718.9,0.00027534,2]
[314940147,1708690251402,-1231.72,0.00027534,2]
[314940148,1708690251411,-1045.68,0.00027534,2]
[314940149,1708690251422,-590.34,0.00027534,2]
[314940150,1708690251432,-500.0,0.00027534,2]
[314940151,1708690251443,-500.0,0.00027534,2]
[314940152,1708690251453,-500.0,0.00027534,2]
[314940153,1708690251464,-500.0,0.00027534,2]
[314940154,1708690251474,-500.0,0.00027534,2]
[314940155,1708690251484,-1093.23,0.00027534,2]
[314940156,1708690251494,-500.0,0.00027534,2]
[314940157,1708690251504,-627.48,0.00027534,2]
[314940158,1708690251514,-2811.79,0.00027534,2]
[314940159,1708690251524,-918.88,0.00027534,2]
[314940160,1708690251534,-500.0,0.00027534,2]
[314940161,1708690251544,-500.0,0.00027534,2]
[314940162,1708690251554,-500.0,0.00027534,2]
[314940163,1708690251566,-263.13297231,0.00027534,2]
[314940164,1708690251576,-500.0,0.00027534,2]
[314940165,1708690251586,-500.0,0.00027534,2]
[314940166,1708690251596,-3861.09,0.00027534,2]
[314940167,1708690251605,-500.0,0.00027534,2]
[314940168,1708690251616,-4061.13,0.00027534,2]
[314940169,1708690251625,-810.42,0.00027534,2]
[314940170,1708690251636,-500.0,0.00027534,2]
[314940171,1708690251647,-2321.56,0.00027534,2]
[314940172,1708690251658,-500.0,0.00027534,2]
[314940173,1708690251669,-500.0,0.00027534,2]
[314940174,1708690251679,-500.0,0.00027534,2]
[314940175,1708690251689,-526.54806111,0.00027534,2]
[314940176,1708690251699,-150.0,0.00027537,2]
[314940177,1708690251708,-20628.11851522,0.00027538,2]
[314940178,1708690251718,-3268.46259451,0.00027539,2]
[314940179,1708690251728,-150.0,0.00027542,2]
[314940180,1708690251737,-150.0,0.00027546,2]
[314940181,1708690251746,-1287.87,0.00027556,2]
[314940182,1708690251756,-150.0,0.00027558,2]
[314940183,1708690251766,-191.95597055,0.00027571,2]
[314940184,1708690251776,-150.0,0.00027587,2]
[314940185,1708690251785,-150.0,0.00027604,2]
[314940186,1708690251795,-150.0,0.00027615,2]
[314940187,1708690251804,-150.0,0.00027624,2]
[314940188,1708690251815,-150.0,0.0002763,2]
[314940189,1708690251825,-150.0,0.00027632,2]
[314940190,1708690251835,-150.0,0.00027633,2]
[314940191,1708690251845,-430.3146875,0.00027645,2]
[314940192,1708690251854,-150.0,0.00027659,2]
[314940193,1708690251863,-155.12,0.0002766,2]
[314940194,1708690251873,-500.0,0.00027671,2]
[314940195,1708690251884,-1000.0,0.00027671,7]
[314940196,1708690251894,-500.0,0.00027671,2]
[314940197,1708690251904,-500.0,0.00027671,2]
[314940198,1708690251915,-502.39223622,0.00027671,2]
[314940199,1708690251926,-500.0,0.00027671,2]
[314940200,1708690251936,-553.70009427,0.00027671,2]
[314940201,1708690251947,-500.0,0.00027671,2]
[314940202,1708690251957,-500.0,0.00027671,2]
[314940203,1708690251967,-500.0,0.00027671,2]
[314940204,1708690251977,-500.0,0.00027671,2]
[314940205,1708690251987,-500.0,0.00027671,2]
[314940206,1708690251998,-500.0,0.00027671,2]
[314940207,1708690252007,-293.81665893,0.00027671,2]
[314940208,1708690252017,-500.0,0.00027671,2]
[314940209,1708690252026,-500.0,0.00027671,2]
[314940210,1708690252037,-500.0,0.00027671,2]
[314940211,1708690252046,-1209.21,0.00027671,2]
[314940212,1708690252062,-789.7,0.00027671,2]